Cogmind - Beta 14 @@@ ROGUE MODE // 2025.03.29 @ 22:30:53 Player: saltine Result: Destroyed by G-34 Mercenary with Small Laser Performance ------------- Evolutions (0) 0 Regions Visited (2) 400 Robots Destroyed (37) 185 Value Destroyed (563) 563 Prototype IDs (2) 40 Alien Tech Used (0) 0 Bonus (0) 0 TOTAL SCORE: 1188 Bonus ------- None Cogmind --------- Core Integrity 0/250 Matter 300/300 Energy 223/250 System Corruption 0% Temperature Cool (48) Movement Treading (160) Location -10/Mines Parts ------- > --- POWER (1) -------- Ion Engine > --- PROPULSION (2) --- Light Treads Light Treads > --- UTILITY (2) ------ Cooling System Large Storage Unit > --- WEAPON (2) ------- Particle Cannon Particle Cannon > --- INVENTORY (15) --- Light Ion Engine Light Treads Light Treads Light Treads Wheel Cooling System Huge Storage Unit Large Matter Pod (150) Machine Analyzer Experimental Sensor Array Seismic Detector Light Cannon Rocket Launcher Mining Laser Peak State ------------ > --- POWER ------------ Ion Engine > --- PROPULSION ------- Light Treads Light Treads > --- UTILITY ---------- Cooling System Large Storage Unit > --- WEAPON ----------- Particle Cannon Particle Cannon > --- INVENTORY -------- Light Ion Engine Light Treads Light Treads Light Treads Wheel Cooling System Huge Storage Unit Large Matter Pod Machine Analyzer Experimental Sensor Array Seismic Detector Light Cannon Mining Laser [Rating: 12] Favorites ----------- Power Ion Engine Engine Ion Engine Propulsion Light Treads Treads Light Treads Leg Aluminum Leg Utility Large Storage Unit Device Cooling System Storage Large Storage Unit Weapon Particle Cannon Energy Cannon Particle Cannon Ballistic Gun Light Assault Rifle Ballistic Cannon Light Cannon Build | -11 -10 -10 ------- Run | Yrd Mat Min Slots Evolved . | . . . Power . | . . . Propulsion . | . . . Utility . | . . . Weapon . | . . . Parts Attached 19 | . 13 6 Power 2 | . 1 1 Engine 2 | . 1 1 Core . | . . . Reactor . | . . . Propulsion 7 | . 5 2 Treads 7 | . 5 2 Leg . | . . . Wheel . | . . . Hover . | . . . Flight . | . . . Utility 7 | . 5 2 Device 5 | . 3 2 Storage 2 | . 2 . Processor . | . . . Hackware . | . . . Protection . | . . . Artifact . | . . . Weapon 3 | . 2 1 Energy Gun . | . . . Energy Cannon 2 | . 1 1 Ballistic Gun . | . . . Ballistic Cannon 1 | . 1 . Launcher . | . . . Special Weapon . | . . . Impact Weapon . | . . . Slashing Weapon . | . . . Piercing Weapon . | . . . Special Melee Weapon . | . . . Unidentified Prototypes . | . . . Parts Lost 7 | . 3 4 Power 1 | . . 1 Propulsion 3 | . 1 2 Utility . | . . . Weapon 3 | . 2 1 Highest Loss Streak 3 | . 3 2 To Critical Strikes . | . . . Average Slot Usage (%) 97 | . 94 99 Engine 14 | . 14 14 Treads 24 | . 19 27 Leg 3 | . 8 . Device 11 | . 9 14 Storage 14 | . 14 14 Energy Cannon 15 | . 6 23 Ballistic Gun 7 | . 15 . Ballistic Cannon 5 | . 6 4 Peak Build Rating 12 | 6 10 12 Average Rating 9 | 6 8 11 On Entrance 7 | 6 6 10 Naked Turns . | . . . Heaviest Build 35 | 11 34 35 Greatest Support 40 | 20 40 40 Greatest Overweight (x) 1 | . 1 . Average Overweight (x) . | . . . Largest Inventory Capacity 15 | 8 15 15 Average Capacity 13 | 8 12 15 Most Carried 15 | 6 15 15 Average Carried 12 | 6 11 13 Final Capacity 15 | 8 15 15 Final Carried 15 | 6 15 14 Class Distribution -------------------- 100% | Mutant Dominant Class ---------------- Mutant | -10/Materials Mutant | -10/Mines Resources | -11 -10 -10 ----------- Run | Yrd Mat Min Matter Collected 781 | 200 459 122 Remotely . | . . . Salvage Created 1197 | . 663 534 Parts 70 | . 38 32 Haulers Intercepted 2 | . 2 . Recyclers Shooed 4 | . 3 1 Parts Field Recycled . | . . . Retrieved Matter . | . . . Parts Self-Destructed . | . . . Prevented . | . . . Kills | -11 -10 -10 ------- Run | Yrd Mat Min Combat Hostiles Destroyed 26 | . 13 13 Melee 1 | . . 1 Guns 10 | . 10 . Cannons 14 | . 3 11 Classes Destroyed 9 | . 6 3 Worker 1 | . . 1 Tunneler 3 | . . 3 Hauler 2 | . 2 . Recycler 6 | . 2 4 Mechanic 1 | . 1 . Operator 1 | . 1 . Swarmer 14 | . 6 8 Grunt 9 | . 7 2 Assembled 3 | . . 3 Best Kill Streak 7 | . 7 3 Combat Bots Only 7 | . 7 3 Max Kills in Single Turn 1 | . 1 1 Gunslinging . | . . . Exploded . | . . . Melee 1 | . . 1 Uniques/NPCs Destroyed . | . . . Combat | -11 -10 -10 -------- Run | Yrd Mat Min Hostile Shots Fired 183 | . 76 107 Missed 46 | . 17 29 Damage Taken 1419 | . 690 729 Core 250 | . 79 171 Absorbed by Shields . | . . . Core Remaining (%) 100 | 100 . . Volleys Fired 113 | . 55 58 Largest 2 | . 2 2 Hottest 136 | . 103 136 Shots Fired 213 | . 107 106 Gun 82 | . 82 . Cannon 131 | . 25 106 Launcher . | . . . Special . | . . . Kinetic 114 | . 92 22 Thermal 99 | . 15 84 Explosive . | . . . Electromagnetic . | . . . Robot Hit Streak 11 | . 11 8 Robot Miss Streak 6 | . 6 5 Penetration Max . | . . . Secondary Targets 1 | . 1 . Max Gunslinging Chain 1 | . 1 . Shots Hit Robots 119 | . 63 56 Core Hits 48 | . 28 20 Critical Kills . | . . . Critical Parts Destroyed 1 | . 1 . Critical Strikes 1 | . 1 . Destroy 1 | . 1 . Melee Attacks . | . . . Impact . | . . . Slashing . | . . . Piercing . | . . . Sneak Attacks . | . . . Combat Hostiles . | . . . Follow-up Attacks . | . . . Damage Inflicted 2039 | . 833 1206 Guns 513 | . 513 . Cannons 1465 | . 291 1174 Explosions . | . . . Melee . | . . . Ramming 61 | . 29 32 Kinetic 720 | . 598 122 Thermal 1258 | . 206 1052 Explosive . | . . . Electromagnetic . | . . . Impact . | . . . Slashing . | . . . Piercing . | . . . Highest Corruption . | . . . Average Corruption . | . . . Corruption Purged . | . . . Corruption Blocked . | . . . Overload Shots . | . . . Overflow Damage 54 | . . 54 Projectiles 52 | . . 52 Explosions . | . . . Melee 2 | . . 2 Knockbacks 1 | . . 1 Impact . | . . . Kinetic 1 | . . 1 Secondary . | . . . Self-Inflicted Damage . | . . . Shots . | . . . Rammed 8 | . 2 6 Targets Rammed 12 | . 4 8 Kicked 2 | . 2 . Crushed 2 | . . 2 Highest Temperature 232 | . 28 232 Average Temperature 36 | . 14 41 Received Heat Transfer 348 | . 267 81 Siege Activations . | . . . Robots Corrupted 1 | . . 1 Combat Hostiles 1 | . . 1 Parts Fried . | . . . Impact Corruptions 1 | . . 1 Robots Melted . | . . . Combat Hostiles . | . . . Parts Melted 1 | . . 1 Heat Transferred 2220 | . 370 1850 Parts Sabotaged . | . . . Parts Stolen . | . . . Parts Stripped . | . . . Power Chain Reactions . | . . . Alert | -11 -10 -10 ------- Run | Yrd Mat Min Peak Influence 287 | . 235 287 Initial 72 | . . 72 Average 115 | . 118 112 Maximum Alert Level 1 | . 1 1 Low Security (%) 78 | 100 76 79 Level 1 21 | . 23 20 Level 2 . | . . . Level 3 . | . . . Level 4 . | . . . Level 5 . | . . . High Security . | . . . Max Security . | . . . Squads Dispatched 3 | . 3 . Investigation 1 | . 1 . Extermination . | . . . Reinforcement 2 | . 2 . Assault . | . . . Garrison . | . . . Intercept . | . . . Searches Triggered . | . . . Construction Impeded . | . . . Haulers Reinforced . | . . . Active Scanning Responses . | . . . Cargo Convoy Interrupts . | . . . Stealth | -11 -10 -10 --------- Run | Yrd Mat Min Distress Signals 3 | . 3 . Communications Jammed . | . . . Distress Signals . | . . . Times Spotted 58 | . 36 22 Peak Tracking Total 7 | . 7 3 Tactical Retreats 8 | . 2 6 Traps | -11 -10 -10 ------- Run | Yrd Mat Min Traps Triggered 4 | . 4 . Indirectly . | . . . Trap Hack Attempts . | . . . Triggered . | . . . Disarmed . | . . . Reprogrammed . | . . . Reused . | . . . Traps Extracted . | . . . Installed . | . . . Triggered . | . . . Machines | -11 -10 -10 ---------- Run | Yrd Mat Min Machines Disabled 1 | . 1 . Max in Single Turn 1 | . 1 . Machines Repaired . | . . . Machines Dismantled . | . . . Machines Sabotaged . | . . . Overloaded Fab Kills . | . . . Hacking | -11 -10 -10 --------- Run | Yrd Mat Min Machines Accessed 5 | . 5 . Terminals 5 | . 5 . Fabricators . | . . . Repair Stations . | . . . Recycling Units . | . . . Scanalyzers . | . . . Garrison Access . | . . . Total Hacks 13 | . 13 . Successful 6 | . 6 . Failed 7 | . 7 . Catastrophic 1 | . 1 . Database Lockouts . | . . . Manual 7 | . 7 . Terminals 13 | . 13 . Fabricators . | . . . Repair Stations . | . . . Recycling Units . | . . . Scanalyzers . | . . . Garrison Access . | . . . Terminal Hacks 5 | . 5 . Robot Analysis 1 | . 1 . Prototype ID Bank 1 | . 1 . Locate Traps 1 | . 1 . Hauler Manifests 1 | . 1 . Zone Layout 1 | . 1 . Fabricator Hacks . | . . . Repair Station Hacks . | . . . Recycling Unit Hacks . | . . . Scanalyzer . | . . . Garrison Access Hacks . | . . . Unauthorized Hacks 1 | . 1 . Terminals 1 | . 1 . Assimilate 1 | . 1 . Fabricators . | . . . Repair Stations . | . . . Recycling Units . | . . . Scanalyzers . | . . . Garrison Access . | . . . Data Cores Recovered . | . . . Used . | . . . Hacking Detections 5 | . 5 . Full Trace Events . | . . . Feedback Events . | . . . Feedback Blocked . | . . . Robot Schematics Acquired . | . . . Robots Built . | . . . Authchips . | . . . Time . | . . . Total Robot Build Rating . | . . . Part Schematics Acquired . | . . . Parts Built . | . . . Authchips . | . . . Time . | . . . Total Part Build Rating . | . . . Parts Repaired . | . . . Time . | . . . Parts Recycled . | . . . Recycled Matter . | . . . Retrieved Matter . | . . . Retrieved Components . | . . . Parts Scanalyzed . | . . . Part Schematics Acquired . | . . . Parts Damaged . | . . . Bothacking | -11 -10 -10 ------------ Run | Yrd Mat Min Used RIF Installer . | . . . Robots Hacked . | . . . Non-combat . | . . . Combat . | . . . Robot Hacks Applied . | . . . Relay Couplers Released . | . . . Fabnet Peak Effective % . | . . . Robots Rewired . | . . . Allies Hacked . | . . . Hacks Repelled . | . . . Allies | -11 -10 -10 -------- Run | Yrd Mat Min Total Allies . | . . . Largest Group . | . . . Highest-Rated Group . | . . . Highest-Rated Ally . | . . . Total Orders . | . . . Ally Attacks . | . . . Total Damage . | . . . Kills . | . . . Allies Corrupted . | . . . Allies Melted . | . . . Intel | -11 -10 -10 ------- Run | Yrd Mat Min Robot Analysis Total 1 | . 1 . Derelict Logs Recovered 2 | . . 2 Drone Launches . | . . . Drone Recoveries . | . . . Exploration | -11 -10 -10 ------------- Run | Yrd Mat Min Turns Passed 2416 | 5 1112 1299 Spaces Moved 1320 | 5 624 691 Core . | . . . Treads 1105 | . 414 691 Legs 215 | 5 210 . Wheels . | . . . Hover . | . . . Flight . | . . . Fastest Speed 120 | 120 120 160 Average Speed 153 | 120 146 160 Slowest Speed 240 | 120 240 160 Overloaded Moves . | . . . Propulsion Burnouts . | . . . Robots Hopped . | . . . Cave-ins Triggered . | . . . Exploration Rate (%) 63 | 2 93 95 Regions Visited 2 Branch Regions 1 Pre-discovered Areas . | . . . Known Exits Taken . | . . . Unknown Exits Taken 2 | 1 1 . Scrap Searched 1 | . . 1 Spaces Dug . | . . . Terrain Destroyed . | . . . Melee . | . . . Projectile . | . . . AOE . | . . . Terrain Rammed . | . . . Walls Destroyed . | . . . Machines Disabled . | . . . Actions | -11 -10 -10 --------- Run | Yrd Mat Min Total 1497 | 4 720 773 Wait 9 | . 4 5 Move 1318 | 4 623 691 Hop . | . . . Pick Up 19 | . 15 4 Fast Attach 4 | . 4 . Attach 8 | . 4 4 Detach . | . . . Swap 7 | . 5 2 Drop 7 | . 6 1 Fire 113 | . 55 58 Melee . | . . . Ram . | . . . Kick 2 | . 2 . Crush 10 | . 2 8 Escape Stasis . | . . . Rewire . | . . . Trap . | . . . Miscellaneous . | . . . Route ------- -11/Scrapyard -10/Materials (discovered 4 exits: [*Mat x3] / [*Min]) -10/Mines (discovered 2 exits: [*Mat x2]) History --------- Turn | Location | Event 1 | -11/Scrapyard | Discovered new exit (range 2) 6 | -11/Scrapyard | Entered Materials 240 | -10/Materials | Discovered new exit (range 9) 309 | -10/Materials | Build established: Mutant 336 | -10/Materials | Discovered new exit (range 13) 347 | -10/Materials | Destroyed 7 combat bots 494 | -10/Materials | Discovered new exit (range 9) 646 | -10/Materials | Lost 3 parts (1n2w) 700 | -10/Materials | Discovered new exit (range 18) 1118 | -10/Materials | Entered Mines 1267 | -10/Mines | Core integrity fell below 50% 1404 | -10/Mines | Assembled infested the area 1607 | -10/Mines | Discovered new exit (range 7) 1674 | -10/Mines | Learned Materials terminal intel 1691 | -10/Mines | Found a damaged Exp. Sensor Array with a note attached 1695 | -10/Mines | Found Prototype Device 1865 | -10/Mines | Core integrity fell below 20% 1906 | -10/Mines | Received a Rocket Launcher from a helpful Derelict 1949 | -10/Mines | Discovered new exit (range 11) 1958 | -10/Mines | Learned Materials emergency access door positions 2417 | -10/Mines | Destroyed by G-34 Mercenary with Small Laser Last Messages --------------- 01917_ R-06 Scavenger destroyed. 01947_ Slammed into U-05 Engineer. 01949_ EXIT=FOUND 01958_ Acquired derelict log, extracted data. Data stored: Materials emergency access points. 01980_ A derelict emerges from the shadows: "What are you doing alone down here?" 01982_ NN-5F2(g): "Well, at least you look like you can take care of yourself!" 01984_ NN-5F2(g): "I have the funny feeling that things are about to get a lot worse around here, see you around!" 01984_ NN-5F2(g) slips back into the shadows. 02136_ K-01 Serf collects debris. 02158_ Slammed into K-01 Serf. 02171_ R-06 Scavenger destroyed. 02179_ Destroyed Lgt. Ion Engine. 02305_ Destroyed Tractor Beam. 02309_ R-06 Scavenger destroyed. 02321_ K-01 Serf collects debris. 02404_ K-01 Serf cleans the Seismic Survey Station. Map ----- +----------------------------------------------------+ | | | | | | | | | | | ???????????????????????????????????????? | | ???????????????????????????????????????? | | ?????????######????????????????????????? | | ????????## ##???????????????????????? | | ???????## #???????????????????????? | | ??????## #???????????????????????? | | ???#### ##??????????????????????? | | ???# #??????????????????????? | | ???# ##?????????????????????? | | ???# ##### #?????????????????????? | | ???# #???## #?????????????????????? | | ???# #????# #?????????????????????? | | ???# #????## ##????????????????????? | | ???# #?????## ###??????????????????? | | ???# #??????##gg ##?????????????????# | | ???# #??????## ##???????????????## | | ??? ??????# #??????????????## | | ??? ??????# #????###???????# | | ??? ""??????# """ #???## ####???##* | | ??? ""??????# """ #???# ##?##!% | | ?? ""??????##@ k""" #????# ### = | | ?? ?????????## #????# % # | | ??###??????????# ##???## % ### | | ???????????????## ##????# % % ##?? | | ????????????????## ##???## %####??? | | ?????????????????## #??## ##?????? | | ?????????????????## #??# #??????? | | ????????######??## ##?## #??????? | | ????##### #??# #?## ##??????? | | ????# #??# #?# #####????? | | ????# ## #??# #?# #### ##???? | | ????# ## #??# ##?# #### #???? | | ????# ## #??## ##?## ##?# #???? | | ???## ## #???# ##?# ##??# ##??? | | ??## ## #???# ### ###### ###? | | ??# ## #??## !=%[! ## | | ??# ## #??# *[*!= [ # | | ??## ######??# ####%#### % | | ???## #???????## #??#%#??## ### ## | | ????## #????????#####??#*#???####?##### | | ????## #???????????????#*#????????????# | | ???## ##??????????????#=#?????####???# | | ???# ##????#####??###%###### ##??# | | ??## #??### #### [ #??# | | ?## #### *%= #??# | +----------------------------------------------------+ Best States ------------- Heat Dissipation 47 Energy Generation 10 Energy Capacity 250 Matter Stores 300 Matter Capacity 300 Sight Range 16 Terrain Scan Density 10 Evasion (%) 55 Recoil Reduction 2 Item Schematics ----------------- None Robot Schematics ------------------ None Fabricated ------------ Nothing Alien Tech Used ----------------- None Achievements -------------- None Challenges ------------ None Game ------ Seed CoolingDerelictDissipator Manual? 0 Play Time 00:19:56 Cumulative 307.4 hours Start 2025.03.29 @ 17:03:15 End 2025.03.29 @ 22:30:53 Sessions 2 Manual Loads 0 Difficulty Rogue Special Mode None Game No. 171 Rogue 171 Adventurer 0 Explorer 0 Win Type - Total 15 Types 3/2/6/2/1/0/1/0/0 Lore% 81 Gallery% 83 Achievement% 73 Wizard Run 0 Options --------- Layout 0 ASCII 0 Keyboard 0 Movement Arrows Keybinds 0 Fullscreen 2 Font 18/SmallcapsGlow Map View 76x50 Zoom Use 0% Tactical HUD 1 Map Filters NONE Filters NONE Steam 1 RUN: 51732363-f006-4dcf-823e-459e9c5d9391